{"text_format":"1","workbook":"xlsx","n_sheets":2,"sheets":["Entrada de Folha de Pagamento","modelo_canhotos"],"not_rendered":{"charts":0,"images":0,"macros":1,"external_links":0,"defined_names":7,"comments":0,"pivot_tables":0},"unopened":[],"bounds":{"document_bytes":16777216,"sheet_cells":100000,"rows_first":2000,"rows_last":500,"rows_between":2000,"halvings":0,"cell_chars":16384,"cell_head_chars":4096},"cells_cut":0,"cells_raw":0,"read":"whole","date_system":"1900"}

{"sheet":"Entrada de Folha de Pagamento","index":0,"n_rows":13,"n_cols":24,"rows_kept":13,"cut":false,"hidden":false,"merged":[]}
[null,"CALCULADORA DE FOLHA DE PAGAMENTO",null,null,null,null,null,null,null,null,"TÉRMINO DO PERÍODO",41372,null,"NOME DA EMPRESA:",null,"ADVENTURE WORKS"]
[]
[null,"ID","Nome do funcionário","Horas Trabalhadas Reg.","Horas de Férias","Horas de Licença","Horas Extras","Taxa de Horas Extras","Pagamento Bruto","Impostos e Deduções","Outras deduções","Pagamento Líquido"," ","Pagamento por Hora","Status do Imposto","Subsídio Federal","Imposto Estadual","Imposto de Renda Federal","Imposto de Seguridade Social","Imposto Medicare","Total de Impostos Retidos","Dedução de Seguro","Outras Deduções Reg.","Total de Deduções Reg."]
[null,1001,"Pedro Ruivo",50,5,1,null,null,{"$f":"SUM(Funcionários[[#This Row],[Horas Trabalhadas Reg.]:[Horas de Licença]])*Funcionários[[#This Row],[Pagamento por Hora]]+Funcionários[[#This Row],[Horas Extras]]*Funcionários[[#This Row],[Taxa de Horas Extras]]","v":560},{"$f":"Funcionários[[#This Row],[Pagamento Bruto]]*Funcionários[[#This Row],[Total de Impostos Retidos]] + Funcionários[[#This Row],[Total de Deduções Reg.]]","v":273.08000000000004},20,{"$f":"Funcionários[[#This Row],[Pagamento Bruto]]-Funcionários[[#This Row],[Impostos e Deduções]]-Funcionários[[#This Row],[Outras deduções]]","v":266.91999999999996},null,10,1,4,2.3E-2,0.28000000000000003,6.3E-2,1.4500000000000001E-2,{"$f":"SUM(Funcionários[[#This Row],[Imposto Estadual]:[Imposto Medicare]])","v":0.38050000000000006},20,40,{"$f":"SUM(Funcionários[[#This Row],[Dedução de Seguro]:[Outras Deduções Reg.]])","v":60}]
[null,1002,"Luis Sousa",40,null,null,null,null,{"$f":"SUM(Funcionários[[#This Row],[Horas Trabalhadas Reg.]:[Horas de Licença]])*Funcionários[[#This Row],[Pagamento por Hora]]+Funcionários[[#This Row],[Horas Extras]]*Funcionários[[#This Row],[Taxa de Horas Extras]]","v":320},{"$f":"Funcionários[[#This Row],[Pagamento Bruto]]*Funcionários[[#This Row],[Total de Impostos Retidos]] + Funcionários[[#This Row],[Total de Deduções Reg.]]","v":131.76000000000002},null,{"$f":"Funcionários[[#This Row],[Pagamento Bruto]]-Funcionários[[#This Row],[Impostos e Deduções]]-Funcionários[[#This Row],[Outras deduções]]","v":188.23999999999998},null,8,1,1,2.3E-2,0.28000000000000003,6.3E-2,1.4500000000000001E-2,{"$f":"SUM(Funcionários[[#This Row],[Imposto Estadual]:[Imposto Medicare]])","v":0.38050000000000006},0,10,{"$f":"SUM(Funcionários[[#This Row],[Dedução de Seguro]:[Outras Deduções Reg.]])","v":10}]
[null,1003,"Luciana Botelho",35,3,null,null,null,{"$f":"SUM(Funcionários[[#This Row],[Horas Trabalhadas Reg.]:[Horas de Licença]])*Funcionários[[#This Row],[Pagamento por Hora]]+Funcionários[[#This Row],[Horas Extras]]*Funcionários[[#This Row],[Taxa de Horas Extras]]","v":532},{"$f":"Funcionários[[#This Row],[Pagamento Bruto]]*Funcionários[[#This Row],[Total de Impostos Retidos]] + Funcionários[[#This Row],[Total de Deduções Reg.]]","v":240.42600000000004},null,{"$f":"Funcionários[[#This Row],[Pagamento Bruto]]-Funcionários[[#This Row],[Impostos e Deduções]]-Funcionários[[#This Row],[Outras deduções]]","v":291.57399999999996},null,14,1,3,2.3E-2,0.28000000000000003,6.3E-2,1.4500000000000001E-2,{"$f":"SUM(Funcionários[[#This Row],[Imposto Estadual]:[Imposto Medicare]])","v":0.38050000000000006},18,20,{"$f":"SUM(Funcionários[[#This Row],[Dedução de Seguro]:[Outras Deduções Reg.]])","v":38}]
[null,1008,"Carlos Grilo",50,5,1,null,null,{"$f":"SUM(Funcionários[[#This Row],[Horas Trabalhadas Reg.]:[Horas de Licença]])*Funcionários[[#This Row],[Pagamento por Hora]]+Funcionários[[#This Row],[Horas Extras]]*Funcionários[[#This Row],[Taxa de Horas Extras]]","v":1120},{"$f":"Funcionários[[#This Row],[Pagamento Bruto]]*Funcionários[[#This Row],[Total de Impostos Retidos]] + Funcionários[[#This Row],[Total de Deduções Reg.]]","v":441.16000000000008},null,{"$f":"Funcionários[[#This Row],[Pagamento Bruto]]-Funcionários[[#This Row],[Impostos e Deduções]]-Funcionários[[#This Row],[Outras deduções]]","v":678.83999999999992},null,20,1,0,2.3E-2,0.28000000000000003,6.3E-2,1.4500000000000001E-2,{"$f":"SUM(Funcionários[[#This Row],[Imposto Estadual]:[Imposto Medicare]])","v":0.38050000000000006},15,null,{"$f":"SUM(Funcionários[[#This Row],[Dedução de Seguro]:[Outras Deduções Reg.]])","v":15}]
[null,1011,"Patrícia Guida",40,null,null,2,15,{"$f":"SUM(Funcionários[[#This Row],[Horas Trabalhadas Reg.]:[Horas de Licença]])*Funcionários[[#This Row],[Pagamento por Hora]]+Funcionários[[#This Row],[Horas Extras]]*Funcionários[[#This Row],[Taxa de Horas Extras]]","v":430},{"$f":"Funcionários[[#This Row],[Pagamento Bruto]]*Funcionários[[#This Row],[Total de Impostos Retidos]] + Funcionários[[#This Row],[Total de Deduções Reg.]]","v":223.61500000000004},null,{"$f":"Funcionários[[#This Row],[Pagamento Bruto]]-Funcionários[[#This Row],[Impostos e Deduções]]-Funcionários[[#This Row],[Outras deduções]]","v":206.38499999999996},null,10,1,0,2.3E-2,0.28000000000000003,6.3E-2,1.4500000000000001E-2,{"$f":"SUM(Funcionários[[#This Row],[Imposto Estadual]:[Imposto Medicare]])","v":0.38050000000000006},20,40,{"$f":"SUM(Funcionários[[#This Row],[Dedução de Seguro]:[Outras Deduções Reg.]])","v":60}]
[null,1012,"Manuel Machado",40,5,1,null,null,{"$f":"SUM(Funcionários[[#This Row],[Horas Trabalhadas Reg.]:[Horas de Licença]])*Funcionários[[#This Row],[Pagamento por Hora]]+Funcionários[[#This Row],[Horas Extras]]*Funcionários[[#This Row],[Taxa de Horas Extras]]","v":552},{"$f":"Funcionários[[#This Row],[Pagamento Bruto]]*Funcionários[[#This Row],[Total de Impostos Retidos]] + Funcionários[[#This Row],[Total de Deduções Reg.]]","v":270.03600000000006},null,{"$f":"Funcionários[[#This Row],[Pagamento Bruto]]-Funcionários[[#This Row],[Impostos e Deduções]]-Funcionários[[#This Row],[Outras deduções]]","v":281.96399999999994},null,12,1,4,2.3E-2,0.28000000000000003,6.3E-2,1.4500000000000001E-2,{"$f":"SUM(Funcionários[[#This Row],[Imposto Estadual]:[Imposto Medicare]])","v":0.38050000000000006},20,40,{"$f":"SUM(Funcionários[[#This Row],[Dedução de Seguro]:[Outras Deduções Reg.]])","v":60}]
[null,1025,"Fernanda Marques",36,null,2,1,18,{"$f":"SUM(Funcionários[[#This Row],[Horas Trabalhadas Reg.]:[Horas de Licença]])*Funcionários[[#This Row],[Pagamento por Hora]]+Funcionários[[#This Row],[Horas Extras]]*Funcionários[[#This Row],[Taxa de Horas Extras]]","v":474},{"$f":"Funcionários[[#This Row],[Pagamento Bruto]]*Funcionários[[#This Row],[Total de Impostos Retidos]] + Funcionários[[#This Row],[Total de Deduções Reg.]]","v":225.35700000000003},25,{"$f":"Funcionários[[#This Row],[Pagamento Bruto]]-Funcionários[[#This Row],[Impostos e Deduções]]-Funcionários[[#This Row],[Outras deduções]]","v":223.64299999999997},null,12,1,2,2.3E-2,0.28000000000000003,6.3E-2,1.4500000000000001E-2,{"$f":"SUM(Funcionários[[#This Row],[Imposto Estadual]:[Imposto Medicare]])","v":0.38050000000000006},25,20,{"$f":"SUM(Funcionários[[#This Row],[Dedução de Seguro]:[Outras Deduções Reg.]])","v":45}]
[null,1032,"Nuno Farinha",40,5,1,null,null,{"$f":"SUM(Funcionários[[#This Row],[Horas Trabalhadas Reg.]:[Horas de Licença]])*Funcionários[[#This Row],[Pagamento por Hora]]+Funcionários[[#This Row],[Horas Extras]]*Funcionários[[#This Row],[Taxa de Horas Extras]]","v":460},{"$f":"Funcionários[[#This Row],[Pagamento Bruto]]*Funcionários[[#This Row],[Total de Impostos Retidos]] + Funcionários[[#This Row],[Total de Deduções Reg.]]","v":175.03000000000003},50,{"$f":"Funcionários[[#This Row],[Pagamento Bruto]]-Funcionários[[#This Row],[Impostos e Deduções]]-Funcionários[[#This Row],[Outras deduções]]","v":234.96999999999997},null,10,1,3,2.3E-2,0.28000000000000003,6.3E-2,1.4500000000000001E-2,{"$f":"SUM(Funcionários[[#This Row],[Imposto Estadual]:[Imposto Medicare]])","v":0.38050000000000006},null,null,{"$f":"SUM(Funcionários[[#This Row],[Dedução de Seguro]:[Outras Deduções Reg.]])","v":0}]
[null,1049,"Rui Raposo",40,1,null,null,null,{"$f":"SUM(Funcionários[[#This Row],[Horas Trabalhadas Reg.]:[Horas de Licença]])*Funcionários[[#This Row],[Pagamento por Hora]]+Funcionários[[#This Row],[Horas Extras]]*Funcionários[[#This Row],[Taxa de Horas Extras]]","v":615},{"$f":"Funcionários[[#This Row],[Pagamento Bruto]]*Funcionários[[#This Row],[Total de Impostos Retidos]] + Funcionários[[#This Row],[Total de Deduções Reg.]]","v":259.00750000000005},23,{"$f":"Funcionários[[#This Row],[Pagamento Bruto]]-Funcionários[[#This Row],[Impostos e Deduções]]-Funcionários[[#This Row],[Outras deduções]]","v":332.99249999999995},null,15,1,2,2.3E-2,0.28000000000000003,6.3E-2,1.4500000000000001E-2,{"$f":"SUM(Funcionários[[#This Row],[Imposto Estadual]:[Imposto Medicare]])","v":0.38050000000000006},25,null,{"$f":"SUM(Funcionários[[#This Row],[Dedução de Seguro]:[Outras Deduções Reg.]])","v":25}]
[null,"Totais",{"$f":"SUBTOTAL(103,Funcionários[Nome do funcionário])","v":9},{"$f":"SUBTOTAL(109,Funcionários[Horas Trabalhadas Reg.])","v":371},{"$f":"SUBTOTAL(109,Funcionários[Horas de Férias])","v":24},{"$f":"SUBTOTAL(109,Funcionários[Horas de Licença])","v":6},{"$f":"SUBTOTAL(109,Funcionários[Horas Extras])","v":3},null,{"$f":"SUBTOTAL(109,Funcionários[Pagamento Bruto])","v":5063},{"$f":"SUBTOTAL(109,Funcionários[Impostos e Deduções])","v":2239.4715000000001},{"$f":"SUBTOTAL(109,Funcionários[Outras deduções])","v":118},{"$f":"SUBTOTAL(109,Funcionários[Pagamento Líquido])","v":2705.5284999999994},null,null,null,null,null,null,null,null,null,{"$f":"SUBTOTAL(109,Funcionários[Dedução de Seguro])","v":143},{"$f":"SUBTOTAL(109,Funcionários[Outras Deduções Reg.])","v":170},{"$f":"SUBTOTAL(109,Funcionários[Total de Deduções Reg.])","v":313}]

{"sheet":"modelo_canhotos","index":1,"n_rows":47,"n_cols":13,"rows_kept":47,"cut":false,"hidden":true,"merged":[[2,7,2,8],[14,7,14,8],[26,7,26,8],[38,7,38,8],[38,11,38,12],[26,11,26,12],[14,11,14,12],[2,11,2,12],[2,3,2,4],[14,3,14,4],[26,3,26,4],[38,3,38,4],[44,2,44,3],[8,2,8,3],[9,2,9,3],[45,2,45,3],[32,2,32,3],[33,2,33,3],[20,2,20,3],[21,2,21,3]]}
[]
[null,null,{"$f":"NomeEmpresa","v":"ADVENTURE WORKS"}]
[null,null,"PERÍODO",{"$f":"PeríodoTerminandoEm","v":41372},null,null,"NOME",{"$f":"IFERROR(INDEX(Funcionários[Nome do funcionário],Canhoto),\"\")","v":"Pedro Ruivo"},null,null,"ID DO FUNCIONÁRIO",{"$f":"IFERROR(INDEX(Funcionários[ID],Canhoto),\"\")","v":1001}]
[null,null,"Status do Imposto",null,{"$f":"IFERROR(INDEX(Funcionários[Status do Imposto],Canhoto),\"\")","v":1},null,"Subsídio Federal (De W-4)",null,{"$f":"IFERROR(INDEX(Funcionários[Subsídio Federal],Canhoto),\"\")","v":4},null,"Horas Trabalhadas",null,{"$f":"IFERROR(INDEX(Funcionários[Horas Trabalhadas Reg.],Canhoto),\"\")","v":50}]
[null,null,"Taxa por Hora",null,{"$f":"IFERROR(INDEX(Funcionários[Pagamento por Hora],Canhoto),\"\")","v":10},null,"Taxa de Horas Extras",null,{"$f":"IFERROR(INDEX(Funcionários[Taxa de Horas Extras],Canhoto),\"\")","v":0},null,"Horas de Licença",null,{"$f":"IFERROR(INDEX(Funcionários[Horas de Licença],Canhoto),\"\")","v":1}]
[null,null,"Imposto de Seguridade Social",null,{"$f":"IFERROR(INDEX(Funcionários[Imposto de Seguridade Social],Canhoto)  *  INDEX(Funcionários[Pagamento Bruto],Canhoto),\"\")","v":35.28},null,"Imposto de Renda Federal ",null,{"$f":"IFERROR(INDEX(Funcionários[Imposto de Renda Federal],Canhoto)  *  INDEX(Funcionários[Pagamento Bruto],Canhoto),\"\")","v":156.80000000000001},null,"Horas de Férias",null,{"$f":"IFERROR(INDEX(Funcionários[Horas de Férias],Canhoto),\"\")","v":5}]
[null,null,"Imposto Medicare ",null,{"$f":"IFERROR(INDEX(Funcionários[Imposto Medicare],Canhoto)  *  INDEX(Funcionários[Pagamento Bruto],Canhoto),\"\")","v":8.120000000000001},null,"Imposto Estadual ",null,{"$f":"IFERROR(INDEX(Funcionários[Imposto Estadual],Canhoto)  *  INDEX(Funcionários[Pagamento Bruto],Canhoto),\"\")","v":12.879999999999999},null,"Horas Extras",null,{"$f":"IFERROR(INDEX(Funcionários[Horas Extras],Canhoto),\"\")","v":0}]
[null,null,"Dedução de Seguro",null,{"$f":"IFERROR(INDEX(Funcionários[Dedução de Seguro],Canhoto),\"\")","v":20},null,"Outras deduções regulares",null,{"$f":"IFERROR(INDEX(Funcionários[Outras Deduções Reg.],Canhoto),\"\")","v":40},null,"Pagamento Bruto",null,{"$f":"IFERROR(INDEX(Funcionários[Pagamento Bruto],Canhoto),\"\")","v":560}]
[null,null,"Total de Impostos e",null,{"$f":"IFERROR(INDEX(Funcionários[Impostos e Deduções],Canhoto),\"\")","v":273.08000000000004},null,"Outras deduções",null,{"$f":"IFERROR(INDEX(Funcionários[Outras deduções],Canhoto),\"\")","v":20},null,"Total de Taxas de Deduções ",null,{"$f":"IFERROR(INDEX(Funcionários[Impostos e Deduções],Canhoto)  +  INDEX(Funcionários[Outras deduções],Canhoto),\"\")","v":293.08000000000004}]
[null,null,"Deduções Regulares "]
[null,null,null,null,null,null,null,null,null,null,"PAGAMENTO LÍQUIDO",null,{"$f":"IFERROR(INDEX(Funcionários[Pagamento Líquido],Canhoto),\"\")","v":266.91999999999996}]
[]
[]
[null,null,{"$f":"NomeEmpresa","v":"ADVENTURE WORKS"}]
[null,null,"PERÍODO",{"$f":"PeríodoTerminandoEm","v":41372},null,null,"NOME",{"$f":"IFERROR(INDEX(Funcionários[Nome do funcionário],Canhoto),\"\")","v":"Luis Sousa"},null,null,"ID DO FUNCIONÁRIO",{"$f":"IFERROR(INDEX(Funcionários[ID],Canhoto),\"\")","v":1002}]
[null,null,"Status do Imposto",null,{"$f":"IFERROR(INDEX(Funcionários[Status do Imposto],Canhoto),\"\")","v":1},null,"Subsídio Federal (De W-4)",null,{"$f":"IFERROR(INDEX(Funcionários[Subsídio Federal],Canhoto),\"\")","v":1},null,"Horas Trabalhadas",null,{"$f":"IFERROR(INDEX(Funcionários[Horas Trabalhadas Reg.],Canhoto),\"\")","v":40}]
[null,null,"Taxa por Hora",null,{"$f":"IFERROR(INDEX(Funcionários[Pagamento por Hora],Canhoto),\"\")","v":8},null,"Taxa de Horas Extras",null,{"$f":"IFERROR(INDEX(Funcionários[Taxa de Horas Extras],Canhoto),\"\")","v":0},null,"Horas de Licença",null,{"$f":"IFERROR(INDEX(Funcionários[Horas de Licença],Canhoto),\"\")","v":0}]
[null,null,"Imposto de Seguridade Social",null,{"$f":"IFERROR(INDEX(Funcionários[Imposto de Seguridade Social],Canhoto)  *  INDEX(Funcionários[Pagamento Bruto],Canhoto),\"\")","v":20.16},null,"Imposto de Renda Federal ",null,{"$f":"IFERROR(INDEX(Funcionários[Imposto de Renda Federal],Canhoto)  *  INDEX(Funcionários[Pagamento Bruto],Canhoto),\"\")","v":89.600000000000009},null,"Horas de Férias",null,{"$f":"IFERROR(INDEX(Funcionários[Horas de Férias],Canhoto),\"\")","v":0}]
[null,null,"Imposto Medicare ",null,{"$f":"IFERROR(INDEX(Funcionários[Imposto Medicare],Canhoto)  *  INDEX(Funcionários[Pagamento Bruto],Canhoto),\"\")","v":4.6400000000000006},null,"Imposto Estadual ",null,{"$f":"IFERROR(INDEX(Funcionários[Imposto Estadual],Canhoto)  *  INDEX(Funcionários[Pagamento Bruto],Canhoto),\"\")","v":7.3599999999999994},null,"Horas Extras",null,{"$f":"IFERROR(INDEX(Funcionários[Horas Extras],Canhoto),\"\")","v":0}]
[null,null,"Dedução de Seguro",null,{"$f":"IFERROR(INDEX(Funcionários[Dedução de Seguro],Canhoto),\"\")","v":0},null,"Outras deduções regulares",null,{"$f":"IFERROR(INDEX(Funcionários[Outras Deduções Reg.],Canhoto),\"\")","v":10},null,"Pagamento Bruto",null,{"$f":"IFERROR(INDEX(Funcionários[Pagamento Bruto],Canhoto),\"\")","v":320}]
[null,null,"Total de Impostos e",null,{"$f":"IFERROR(INDEX(Funcionários[Impostos e Deduções],Canhoto),\"\")","v":131.76000000000002},null,"Outras deduções",null,{"$f":"IFERROR(INDEX(Funcionários[Outras deduções],Canhoto),\"\")","v":0},null,"Total de Taxas de Deduções ",null,{"$f":"IFERROR(INDEX(Funcionários[Impostos e Deduções],Canhoto)  +  INDEX(Funcionários[Outras deduções],Canhoto),\"\")","v":131.76000000000002}]
[null,null,"Deduções Regulares "]
[null,null,null,null,null,null,null,null,null,null,"PAGAMENTO LÍQUIDO",null,{"$f":"IFERROR(INDEX(Funcionários[Pagamento Líquido],Canhoto),\"\")","v":188.23999999999998}]
[]
[]
[null,null,{"$f":"NomeEmpresa","v":"ADVENTURE WORKS"}]
[null,null,"PERÍODO",{"$f":"PeríodoTerminandoEm","v":41372},null,null,"NOME",{"$f":"IFERROR(INDEX(Funcionários[Nome do funcionário],Canhoto),\"\")","v":"Luciana Botelho"},null,null,"ID DO FUNCIONÁRIO",{"$f":"IFERROR(INDEX(Funcionários[ID],Canhoto),\"\")","v":1003}]
[null,null,"Status do Imposto",null,{"$f":"IFERROR(INDEX(Funcionários[Status do Imposto],Canhoto),\"\")","v":1},null,"Subsídio Federal (De W-4)",null,{"$f":"IFERROR(INDEX(Funcionários[Subsídio Federal],Canhoto),\"\")","v":3},null,"Horas Trabalhadas",null,{"$f":"IFERROR(INDEX(Funcionários[Horas Trabalhadas Reg.],Canhoto),\"\")","v":35}]
[null,null,"Taxa por Hora",null,{"$f":"IFERROR(INDEX(Funcionários[Pagamento por Hora],Canhoto),\"\")","v":14},null,"Taxa de Horas Extras",null,{"$f":"IFERROR(INDEX(Funcionários[Taxa de Horas Extras],Canhoto),\"\")","v":0},null,"Horas de Licença",null,{"$f":"IFERROR(INDEX(Funcionários[Horas de Licença],Canhoto),\"\")","v":0}]
[null,null,"Imposto de Seguridade Social",null,{"$f":"IFERROR(INDEX(Funcionários[Imposto de Seguridade Social],Canhoto)  *  INDEX(Funcionários[Pagamento Bruto],Canhoto),\"\")","v":33.515999999999998},null,"Imposto de Renda Federal ",null,{"$f":"IFERROR(INDEX(Funcionários[Imposto de Renda Federal],Canhoto)  *  INDEX(Funcionários[Pagamento Bruto],Canhoto),\"\")","v":148.96},null,"Horas de Férias",null,{"$f":"IFERROR(INDEX(Funcionários[Horas de Férias],Canhoto),\"\")","v":3}]
[null,null,"Imposto Medicare ",null,{"$f":"IFERROR(INDEX(Funcionários[Imposto Medicare],Canhoto)  *  INDEX(Funcionários[Pagamento Bruto],Canhoto),\"\")","v":7.7140000000000004},null,"Imposto Estadual ",null,{"$f":"IFERROR(INDEX(Funcionários[Imposto Estadual],Canhoto)  *  INDEX(Funcionários[Pagamento Bruto],Canhoto),\"\")","v":12.236000000000001},null,"Horas Extras",null,{"$f":"IFERROR(INDEX(Funcionários[Horas Extras],Canhoto),\"\")","v":0}]
[null,null,"Dedução de Seguro",null,{"$f":"IFERROR(INDEX(Funcionários[Dedução de Seguro],Canhoto),\"\")","v":18},null,"Outras deduções regulares",null,{"$f":"IFERROR(INDEX(Funcionários[Outras Deduções Reg.],Canhoto),\"\")","v":20},null,"Pagamento Bruto",null,{"$f":"IFERROR(INDEX(Funcionários[Pagamento Bruto],Canhoto),\"\")","v":532}]
[null,null,"Total de Impostos e",null,{"$f":"IFERROR(INDEX(Funcionários[Impostos e Deduções],Canhoto),\"\")","v":240.42600000000004},null,"Outras deduções",null,{"$f":"IFERROR(INDEX(Funcionários[Outras deduções],Canhoto),\"\")","v":0},null,"Total de Taxas de Deduções ",null,{"$f":"IFERROR(INDEX(Funcionários[Impostos e Deduções],Canhoto)  +  INDEX(Funcionários[Outras deduções],Canhoto),\"\")","v":240.42600000000004}]
[null,null,"Deduções Regulares "]
[null,null,null,null,null,null,null,null,null,null,"PAGAMENTO LÍQUIDO",null,{"$f":"IFERROR(INDEX(Funcionários[Pagamento Líquido],Canhoto),\"\")","v":291.57399999999996}]
[]
[]
[null,null,{"$f":"NomeEmpresa","v":"ADVENTURE WORKS"}]
[null,null,"PERÍODO",{"$f":"PeríodoTerminandoEm","v":41372},null,null,"NOME",{"$f":"IFERROR(INDEX(Funcionários[Nome do funcionário],Canhoto),\"\")","v":"Carlos Grilo"},null,null,"ID DO FUNCIONÁRIO",{"$f":"IFERROR(INDEX(Funcionários[ID],Canhoto),\"\")","v":1008}]
[null,null,"Status do Imposto",null,{"$f":"IFERROR(INDEX(Funcionários[Status do Imposto],Canhoto),\"\")","v":1},null,"Subsídio Federal (De W-4)",null,{"$f":"IFERROR(INDEX(Funcionários[Subsídio Federal],Canhoto),\"\")","v":0},null,"Horas Trabalhadas",null,{"$f":"IFERROR(INDEX(Funcionários[Horas Trabalhadas Reg.],Canhoto),\"\")","v":50}]
[null,null,"Taxa por Hora",null,{"$f":"IFERROR(INDEX(Funcionários[Pagamento por Hora],Canhoto),\"\")","v":20},null,"Taxa de Horas Extras",null,{"$f":"IFERROR(INDEX(Funcionários[Taxa de Horas Extras],Canhoto),\"\")","v":0},null,"Horas de Licença",null,{"$f":"IFERROR(INDEX(Funcionários[Horas de Licença],Canhoto),\"\")","v":1}]
[null,null,"Imposto de Seguridade Social",null,{"$f":"IFERROR(INDEX(Funcionários[Imposto de Seguridade Social],Canhoto)  *  INDEX(Funcionários[Pagamento Bruto],Canhoto),\"\")","v":70.56},null,"Imposto de Renda Federal ",null,{"$f":"IFERROR(INDEX(Funcionários[Imposto de Renda Federal],Canhoto)  *  INDEX(Funcionários[Pagamento Bruto],Canhoto),\"\")","v":313.60000000000002},null,"Horas de Férias",null,{"$f":"IFERROR(INDEX(Funcionários[Horas de Férias],Canhoto),\"\")","v":5}]
[null,null,"Imposto Medicare ",null,{"$f":"IFERROR(INDEX(Funcionários[Imposto Medicare],Canhoto)  *  INDEX(Funcionários[Pagamento Bruto],Canhoto),\"\")","v":16.240000000000002},null,"Imposto Estadual ",null,{"$f":"IFERROR(INDEX(Funcionários[Imposto Estadual],Canhoto)  *  INDEX(Funcionários[Pagamento Bruto],Canhoto),\"\")","v":25.759999999999998},null,"Horas Extras",null,{"$f":"IFERROR(INDEX(Funcionários[Horas Extras],Canhoto),\"\")","v":0}]
[null,null,"Dedução de Seguro",null,{"$f":"IFERROR(INDEX(Funcionários[Dedução de Seguro],Canhoto),\"\")","v":15},null,"Outras deduções regulares",null,{"$f":"IFERROR(INDEX(Funcionários[Outras Deduções Reg.],Canhoto),\"\")","v":0},null,"Pagamento Bruto",null,{"$f":"IFERROR(INDEX(Funcionários[Pagamento Bruto],Canhoto),\"\")","v":1120}]
[null,null,"Total de Impostos e",null,{"$f":"IFERROR(INDEX(Funcionários[Impostos e Deduções],Canhoto),\"\")","v":441.16000000000008},null,"Outras deduções",null,{"$f":"IFERROR(INDEX(Funcionários[Outras deduções],Canhoto),\"\")","v":0},null,"Total de Taxas de Deduções ",null,{"$f":"IFERROR(INDEX(Funcionários[Impostos e Deduções],Canhoto)  +  INDEX(Funcionários[Outras deduções],Canhoto),\"\")","v":441.16000000000008}]
[null,null,"Deduções Regulares "]
[null,null,null,null,null,null,null,null,null,null,"PAGAMENTO LÍQUIDO",null,{"$f":"IFERROR(INDEX(Funcionários[Pagamento Líquido],Canhoto),\"\")","v":678.83999999999992}]